Cogmind - Beta 17 @@@ ROGUE MODE // 2026.07.27 @ 16:08:59 Player: gortmind Result: Core melted Performance ------------- Evolutions (4) 2000 Regions Visited (5) 1000 Robots Destroyed (17) 85 Value Destroyed (703) 703 Prototype IDs (2) 40 Alien Tech Used (0) 0 Bonus (1271) 1271 TOTAL SCORE: 5099 Bonus ------- Entered DSFs 500 Registered with UFD 300 Met Optimus in HQ 500 Friendly Fire -29 Cogmind --------- Core Integrity 0/850 Matter 26/300 Energy 100/100 System Corruption 1% Temperature Critical (710) Movement Core (150) Ox2 Location -6/DSF Parts ------- > --- POWER (3) -------- (None) > --- PROPULSION (4) --- (None) > --- UTILITY (4) ------ Small Storage Unit > --- WEAPON (4) ------- Gauss Rifle > --- INVENTORY (8) ---- (None) Peak State ------------ > --- POWER ------------ Reinforced Deuterium Engine > --- PROPULSION ------- Light Treads Improved Gravmag System Improved Gravmag System Improved Gravmag System > --- UTILITY ---------- Small Storage Unit > --- WEAPON ----------- Gauss Cannon Gauss Cannon Gauss Cannon Gauss Cannon > --- INVENTORY -------- Light Assault Rifle [Rating: 37] Favorites ----------- Power Improved Ion Engine Engine Improved Ion Engine Propulsion Aluminum Leg Treads Light Treads Leg Aluminum Leg Hover Unit Improved Gravmag System Utility Small Storage Unit Device Improved Thermal Generator Storage Small Storage Unit Processor Targeting Computer Weapon EM Pulse Gun Energy Gun EM Pulse Gun Ballistic Gun Light Assault Rifle Ballistic Cannon Gauss Cannon Build | -11 -10 -10 -9 -6 -6 ------- Run | Yrd Mat Sub Scr Fac DSF Slots Evolved 8 | . . . . 8 . Power 2 | . . . . 2 . Propulsion 2 | . . . . 2 . Utility 2 | . . . . 2 . Weapon 2 | . . . . 2 . Parts Attached 31 | 7 . . 9 . 15 Power 4 | 1 . . 2 . 1 Engine 4 | 1 . . 2 . 1 Core . | . . . . . . Reactor . | . . . . . . Propulsion 11 | 2 . . 4 . 5 Treads 2 | . . . . . 2 Leg 6 | 2 . . 4 . . Wheel . | . . . . . . Hover 3 | . . . . . 3 Flight . | . . . . . . Utility 4 | 2 . . 1 . 1 Device 1 | . . . 1 . . Storage 2 | 2 . . . . . Processor 1 | . . . . . 1 Hackware . | . . . . . . Protection . | . . . . . . Artifact . | . . . . . . Weapon 12 | 2 . . 2 . 8 Energy Gun 4 | 2 . . 2 . . Energy Cannon . | . . . . . . Ballistic Gun 4 | . . . . . 4 Ballistic Cannon 4 | . . . . . 4 Launcher . | . . . . . . Special Weapon . | . . . . . . Impact Weapon . | . . . . . . Slashing Weapon . | . . . . . . Piercing Weapon . | . . . . . . Special Melee Weapon . | . . . . . . Unidentified Prototypes . | . . . . . . Parts Lost 17 | . . . . . 17 Power 2 | . . . . . 2 Propulsion 6 | . . . . . 6 Utility 1 | . . . . . 1 Weapon 8 | . . . . . 8 Highest Loss Streak 12 | . . . . . 12 To Critical Strikes . | . . . . . . Average Backups 5 | 2 4 4 7 7 3 Power . | . . . . . . Propulsion 3 | . 2 2 4 3 1 Utility . | . 1 1 1 1 . Weapon 1 | . 1 1 1 3 1 Tool/Special . | . . . . . . Unused Backups 2 | . . . 2 . . Power . | . . . . . . Propulsion 2 | . . . 2 . . Utility . | . . . . . . Weapon . | . . . . . . Tool/Special . | . . . . . . Average Slot Usage (%) 83 | . 85 85 98 46 31 Engine 11 | . 14 14 14 6 1 Leg 23 | . 28 28 28 13 2 Device 8 | . . . 12 6 1 Storage 12 | . 14 14 14 6 6 Energy Gun 23 | . 28 28 28 13 2 Peak Build Rating 37 | 7 6 6 22 21 37 Average Rating 11 | 4 6 6 12 21 12 On Entrance 10 | . 6 6 6 21 21 Avg Prop Armor Cover (%) 19 | . . . 8 . 25 Naked Turns . | . . . . . . Heaviest Build 33 | 12 12 12 25 25 33 Greatest Support 38 | 20 20 20 38 19 20 Greatest Overweight (x) 8 | . . . 8 1 7 Average Overweight (x) . | . . . . 1 1 Largest Inventory Capacity 8 | 8 8 8 8 8 8 Average Capacity 7 | 6 8 8 8 8 8 Most Carried 8 | 5 4 6 8 7 8 Average Carried 5 | 2 4 4 7 7 3 Final Capacity 8 | 8 8 8 8 8 8 Final Carried 7 | 4 4 6 7 7 . Class Distribution -------------------- 88% | Mutant 6% | Scavenger-Mutant Dominant Class ---------------- Mutant | -10/Materials Mutant | -10/Subcaves Mutant | -9/Scraptown Mutant | -6/Factory Mutant | -6/DSF Resources | -11 -10 -10 -9 -6 -6 ----------- Run | Yrd Mat Sub Scr Fac DSF Matter Collected 662 | 228 . 32 110 . 292 Remotely . | . . . . . . Salvage Created 755 | 134 . . 120 . 501 Parts 37 | 8 . . 4 . 25 Haulers Intercepted . | . . . . . . Recyclers Shooed . | . . . . . . Parts Field Recycled . | . . . . . . Retrieved Matter . | . . . . . . Parts Self-Destructed . | . . . . . . Prevented . | . . . . . . Parts Restored . | . . . . . . Kills | -11 -10 -10 -9 -6 -6 ------- Run | Yrd Mat Sub Scr Fac DSF Combat Hostiles Destroyed 14 | . . . 2 . 12 Melee 1 | . . . . . 1 Guns 9 | . . . 2 . 7 Cannons 3 | . . . . . 3 Classes Destroyed 10 | 2 . . 2 . 6 Tunneler 2 | 2 . . . . . Recycler 1 | 1 . . . . . Cutter 3 | . . . . . 3 Grunt 2 | . . . . . 2 Duelist 1 | . . . . . 1 Specialist 2 | . . . . . 2 Hunter 3 | . . . . . 3 Heavy 1 | . . . . . 1 Guru 1 | . . . 1 . . Scrapper 1 | . . . 1 . . Best Kill Streak 3 | 2 . . 2 . 3 Combat Bots Only 3 | . . . 2 . 3 Max Kills in Single Turn 1 | 1 . . 1 . 1 Gunslinging . | . . . . . . Exploded . | . . . . . . Melee 1 | . . . . . 1 Uniques/NPCs Destroyed . | . . . . . . Combat | -11 -10 -10 -9 -6 -6 -------- Run | Yrd Mat Sub Scr Fac DSF Hostile Shots Fired 206 | . . . 6 . 200 Missed 53 | . . . 3 . 50 Hits 153 | . . . 3 . 150 Melee 23 | . . . . . 23 Projectile 130 | . . . 3 . 127 AOE 3 | . . . . . 3 Critical Strikes 10 | . . . . . 10 Part Disruptions 5 | . . . . . 5 Damage Taken 3207 | 10 . . 62 . 3135 Core 1000 | . . . 25 . 975 Absorbed by Shields . | . . . . . . Core Remaining (%) 95 | 100 . . 90 . . Volleys Fired 77 | 4 . . 7 . 66 Largest 4 | 2 . . 2 . 4 Hottest 160 | 80 . . 120 . 160 Shots Fired 137 | 8 . . 14 . 115 Gun 89 | 8 . . 14 . 67 Cannon 48 | . . . . . 48 Launcher . | . . . . . . Special . | . . . . . . Kinetic 101 | . . . . . 101 Thermal 6 | . . . 2 . 4 Explosive . | . . . . . . Electromagnetic 30 | 8 . . 12 . 10 Robot Hit Streak 10 | 2 . . 6 . 10 Robot Miss Streak 6 | 2 . . 4 . 6 Penetration Max 1 | . . . . . 1 Secondary Targets 2 | . . . 1 . 1 Max Gunslinging Chain 1 | . . . 1 . 1 Shots Hit Robots 73 | 4 . . 9 . 60 Core Hits 37 | 3 . . 3 . 31 Critical Kills . | . . . . . . Critical Parts Destroyed . | . . . . . . Critical Strikes 5 | . . . . . 5 Blast 4 | . . . . . 4 Corrupt 1 | . . . . . 1 Melee Attacks . | . . . . . . Impact . | . . . . . . Slashing . | . . . . . . Piercing . | . . . . . . Sneak Attacks . | . . . . . . Combat Hostiles . | . . . . . . Follow-up Attacks . | . . . . . . Damage Inflicted 1400 | 124 . . 95 . 1181 Guns 917 | 67 . . 95 . 755 Cannons 419 | . . . . . 419 Explosions 57 | 57 . . . . . Melee . | . . . . . . Ramming 7 | . . . . . 7 Kinetic 1063 | . . . . . 1063 Thermal 142 | 57 . . 23 . 62 Explosive . | . . . . . . Electromagnetic 188 | 67 . . 72 . 49 Impact . | . . . . . . Slashing . | . . . . . . Piercing . | . . . . . . Highest Corruption 1 | . . . . . 1 Average Corruption 1 | . . . . . 1 Corruption Purged . | . . . . . . Corruption Blocked . | . . . . . . Effects 4 | . . . . . 4 Message Errors 2 | . . . . . 2 Data Loss (minor) 1 | . . . . . 1 Weapon Failures 1 | . . . . . 1 Overload Shots . | . . . . . . Overflow Damage 11 | 11 . . . . . Projectiles . | . . . . . . Explosions 11 | 11 . . . . . Melee . | . . . . . . Knockbacks 4 | . . . . . 4 Impact . | . . . . . . Kinetic 4 | . . . . . 4 Secondary . | . . . . . . Self-Inflicted Damage 14 | 11 . . . . 3 Shots 1 | 1 . . . . . Rammed 2 | . . . . . 2 Targets Rammed 2 | . . . . . 2 Kicked . | . . . . . . Crushed . | . . . . . . Highest Temperature 710 | 48 . . 157 . 710 Average Temperature 139 | 25 . . 56 . 186 Received Heat Transfer 162 | . . . 36 . 126 Effects 6 | . . . . . 6 Interference 1 | . . . . . 1 Matter Decay 1 | . . . . . 1 Damage (minor) 1 | . . . . . 1 Damage (core) 3 | . . . . . 3 Siege Activations . | . . . . . . Martial Activations . | . . . . . . Shielding Activations . | . . . . . . Robots Disrupted . | . . . . . . Combat Hostiles . | . . . . . . Robots Corrupted . | . . . . . . Combat Hostiles . | . . . . . . Parts Fried . | . . . . . . Impact Corruptions . | . . . . . . Robots Melted . | . . . . . . Combat Hostiles . | . . . . . . Parts Melted 3 | . . . 3 . . Heat Transferred 287 | 100 . . 37 . 150 Parts Sabotaged . | . . . . . . Parts Stolen . | . . . . . . Parts Stripped . | . . . . . . Power Chain Reactions 1 | 1 . . . . . Alert | -11 -10 -10 -9 -6 -6 ------- Run | Yrd Mat Sub Scr Fac DSF Maximum Alert Level . | . . . . . . Low Security (%) 100 | 100 100 . . 100 100 Level 1 . | . . . . . . Level 2 . | . . . . . . Level 3 . | . . . . . . Level 4 . | . . . . . . Level 5 . | . . . . . . High Security . | . . . . . . Max Security . | . . . . . . Sterilizations 1 | . . . . . 1 Peak Influence 110 | 10 . . . . 110 Initial . | . . . . . . Average 48 | . . . . . 63 Influence Increases 295 | 15 . . . . 280 Destroy 0b10 Robot/C 240 | . . . . . 240 Destroy 0b10 Robot/NC 15 | 15 . . . . . Destroy Leader 40 | . . . . . 40 Influence Decreases 185 | 15 . . . . 170 Time Decay 15 | 15 . . . . . Lost Part 170 | . . . . . 170 Squads Dispatched 2 | . . . . . 2 Investigation . | . . . . . . Extermination . | . . . . . . Reinforcement 2 | . . . . . 2 Assault . | . . . . . . Garrison . | . . . . . . Intercept . | . . . . . . Searches Triggered . | . . . . . . Construction Impeded . | . . . . . . Haulers Reinforced . | . . . . . . Active Scanning Responses . | . . . . . . Cargo Convoy Interrupts . | . . . . . . Stealth | -11 -10 -10 -9 -6 -6 --------- Run | Yrd Mat Sub Scr Fac DSF Distress Signals . | . . . . . . Communications Jammed . | . . . . . . Distress Signals . | . . . . . . Times Spotted 24 | . . . 12 . 12 Peak Tracking Total 5 | . . . 5 . 4 Tactical Retreats . | . . . . . . Traps | -11 -10 -10 -9 -6 -6 ------- Run | Yrd Mat Sub Scr Fac DSF Traps Triggered . | . . . . . . Indirectly . | . . . . . . Trap Hack Attempts . | . . . . . . Triggered . | . . . . . . Disarmed . | . . . . . . Reprogrammed . | . . . . . . Reused . | . . . . . . Traps Extracted . | . . . . . . Installed . | . . . . . . Triggered . | . . . . . . Machines | -11 -10 -10 -9 -6 -6 ---------- Run | Yrd Mat Sub Scr Fac DSF Machines Disabled 1 | . . . . . 1 Max in Single Turn 1 | . . . . . 1 Machines Repaired . | . . . . . . Machines Dismantled . | . . . . . . Machines Sabotaged . | . . . . . . Overloaded Fab Kills . | . . . . . . Hacking | -11 -10 -10 -9 -6 -6 --------- Run | Yrd Mat Sub Scr Fac DSF Machines Accessed 6 | . . . 5 1 . Terminals 1 | . . . . 1 . Fabricators . | . . . . . . Repair Stations . | . . . . . . Recycling Units . | . . . . . . Scanalyzers . | . . . . . . Garrison Access . | . . . . . . Total Hacks 35 | . . . 33 2 . Successful 34 | . . . 33 1 . Failed 1 | . . . . 1 . Catastrophic . | . . . . . . Database Lockouts . | . . . . . . Manual . | . . . . . . Terminals 2 | . . . . 2 . Fabricators . | . . . . . . Repair Stations . | . . . . . . Recycling Units . | . . . . . . Scanalyzers . | . . . . . . Garrison Access . | . . . . . . Terminal Hacks 34 | . . . 33 1 . Record 28 | . . . 28 . . Robot Analysis 5 | . . . 5 . . Open DSF 1 | . . . . 1 . Fabricator Hacks . | . . . . . . Repair Station Hacks . | . . . . . . Recycling Unit Hacks . | . . . . . . Scanalyzer . | . . . . . . Garrison Access Hacks . | . . . . . . Unauthorized Hacks . | . . . . . . Terminals . | . . . . . . Fabricators . | . . . . . . Repair Stations . | . . . . . . Recycling Units . | . . . . . . Scanalyzers . | . . . . . . Garrison Access . | . . . . . . Data Cores Recovered . | . . . . . . Used . | . . . . . . Hacking Detections 1 | . . . . 1 . Full Trace Events . | . . . . . . Feedback Events . | . . . . . . Feedback Blocked . | . . . . . . Robot Schematics Acquired . | . . . . . . Robots Built . | . . . . . . Authchips . | . . . . . . Time . | . . . . . . Total Robot Build Rating . | . . . . . . Part Schematics Acquired . | . . . . . . Parts Built . | . . . . . . Authchips . | . . . . . . Time . | . . . . . . Total Part Build Rating . | . . . . . . Part Studies Acquired . | . . . . . . Parts Repaired . | . . . . . . Time . | . . . . . . Parts Recycled . | . . . . . . Recycled Matter . | . . . . . . Retrieved Matter . | . . . . . . Retrieved Components . | . . . . . . Parts Scanalyzed . | . . . . . . Part Schematics Acquired . | . . . . . . Parts Damaged . | . . . . . . Bothacking | -11 -10 -10 -9 -6 -6 ------------ Run | Yrd Mat Sub Scr Fac DSF Used RIF Installer . | . . . . . . Robots Hacked . | . . . . . . Non-combat . | . . . . . . Combat . | . . . . . . Robot Hacks Applied . | . . . . . . Relay Couplers Released . | . . . . . . Fabnet Peak Effective % . | . . . . . . Robots Rewired . | . . . . . . Allies Hacked . | . . . . . . Hacks Repelled . | . . . . . . Allies | -11 -10 -10 -9 -6 -6 -------- Run | Yrd Mat Sub Scr Fac DSF Total Allies . | . . . . . . Largest Group . | . . . . . . Highest-Rated Group . | . . . . . . Highest-Rated Ally . | . . . . . . Initial UFD Resources 23 | . . . . 23 23 Total Orders . | . . . . . . Ally Attacks . | . . . . . . Total Damage . | . . . . . . Kills . | . . . . . . Allies Corrupted . | . . . . . . Allies Melted 1 | . . . 1 . . Intel | -11 -10 -10 -9 -6 -6 ------- Run | Yrd Mat Sub Scr Fac DSF Active Infowar (turns) . | . . . . . . Robot Analysis Total 5 | . . . 5 . . Derelict Logs Recovered . | . . . . . . Drone Launches . | . . . . . . Drone Recoveries . | . . . . . . Exploration | -11 -10 -10 -9 -6 -6 ------------- Run | Yrd Mat Sub Scr Fac DSF Turns Passed 2300 | 92 34 355 1421 4 394 Spaces Moved 1159 | 65 29 127 780 3 155 Core 119 | 21 . . 3 . 95 Treads 3 | . . . . . 3 Legs 997 | 44 29 127 777 3 17 Wheels . | . . . . . . Hover 40 | . . . . . 40 Flight . | . . . . . . Fastest Speed 50 | 50 120 120 100 170 60 Average Speed 157 | 97 120 120 176 170 121 Slowest Speed 450 | 120 120 120 450 170 400 Overloaded Moves . | . . . . . . Propulsion Burnouts . | . . . . . . Robots Hopped . | . . . . . . Potential Cave-ins . | . . . . . . Cave-ins Triggered . | . . . . . . Exploration Rate (%) 27 | 4 6 6 51 . 72 Regions Visited 5 Branch Regions 2 Pre-discovered Areas . | . . . . . . Known Exits Taken 2 | . . . 1 1 . Unknown Exits Taken 3 | 1 1 1 . . . Scrap Searched 2 | . . . 2 . . Spaces Dug . | . . . . . . Terrain Destroyed 7 | 5 . . . . 2 Melee . | . . . . . . Projectile 2 | . . . . . 2 AOE 5 | 5 . . . . . Terrain Rammed . | . . . . . . Walls Destroyed . | . . . . . . Machines Disabled . | . . . . . . Actions | -11 -10 -10 -9 -6 -6 --------- Run | Yrd Mat Sub Scr Fac DSF Total 1528 | 86 28 329 815 2 268 Wait 214 | . . 201 3 . 10 Move 1154 | 64 28 126 779 2 155 Hop . | . . . . . . Pick Up 34 | 10 . 2 9 . 13 Fast Attach . | . . . . . . Attach 28 | 7 . . 1 . 20 Detach 2 | 1 . . . . 1 Swap 9 | . . . 9 . . Drop 8 | . . . 7 . 1 Fire 77 | 4 . . 7 . 66 Melee . | . . . . . . Ram 2 | . . . . . 2 Kick . | . . . . . . Crush . | . . . . . . Escape Stasis . | . . . . . . Rewire . | . . . . . . Trap . | . . . . . . Miscellaneous . | . . . . . . Route ------- -11/Scrapyard -10/Materials -10/Subcaves -9/Scraptown (discovered 2 exits: *Fac x2) -6/Factory -6/DSF (discovered 1 exit: [*Fac]) History --------- Turn | Location | Event 5 | -11/Scrapyard | Discovered new exit (range 16) 93 | -11/Scrapyard | Entered Materials 94 | -10/Materials | Met a group of wandering Federalists 121 | -10/Materials | Discovered new exit (range 8) 127 | -10/Materials | Entered Subcaves 127 | -10/Subcaves | Accompanied by 1 ally 128 | -10/Subcaves | Continued accompanying wandering Federalists (2) 303 | -10/Subcaves | Build established: Mutant 354 | -10/Subcaves | Wandering Federalist uncovered a shortcut to Scraptown 482 | -10/Subcaves | Entered Scraptown 752 | -9/Scraptown | Visited UFD Registry 752 | -9/Scraptown | Registered with UFD as "Cogsourcer" 841 | -9/Scraptown | Visited Junk Repository 912 | -9/Scraptown | Visited Supply Room 950 | -9/Scraptown | Visited DA-N13 Charitable Foundation 975 | -9/Scraptown | Found DCF Scrap (28 items) 1049 | -9/Scraptown | Discovered new exit (range 5) 1228 | -9/Scraptown | Visited Analyses Database 1281 | -9/Scraptown | Visited Scrap Suit Storage 1367 | -9/Scraptown | Visited Curators Association 1542 | -9/Scraptown | Met Optimus 1542 | -9/Scraptown | Accepted into 0bPrime 1733 | -9/Scraptown | Civil war broke out across Scraptown 1793 | -9/Scraptown | Lost 6 allies 1826 | -9/Scraptown | Identified exit to Factory 1903 | -9/Scraptown | Entered Factory 1903 | -6/Factory | Evolved 8 slots: Power x2, Propulsion x2, Utility x2, Weapon x2 1907 | -6/Factory | Identified exit to DSF 1907 | -6/Factory | Entered DSF 1959 | -6/DSF | Additional patrols routed to DSF 2011 | -6/DSF | Lost 4 parts (1p1n1u1w) 2183 | -6/DSF | Core integrity fell below 50% 2184 | -6/DSF | Sterilization system engaged 2204 | -6/DSF | Ambient heat levels rising (+10) 2205 | -6/DSF | Discovered new exit (range 16) 2219 | -6/DSF | Ambient heat levels rising (+10) 2234 | -6/DSF | Ambient heat levels rising (+10) 2249 | -6/DSF | Ambient heat levels rising (+10) 2264 | -6/DSF | Ambient heat levels rising (+10) 2279 | -6/DSF | Ambient heat levels rising (+10) 2280 | -6/DSF | Lost 12 parts (1p5n6w) 2294 | -6/DSF | Ambient heat levels rising (+10) 2294 | -6/DSF | Core integrity fell below 20% 2302 | -6/DSF | Core melted Last Messages --------------- 02290_ A-15 Conveyor heat spikes uncontrollably. 02291_ A-15 Conveyor heat damages Med. Treads. 02294_ Overheating: Core damaged (-144). 02294_ A-15 Conveyor heat damages Transport Network Coupler. 02294_ ALERT: Ambient heat levels +10. 02295_ A-15 Conveyor heat damages Imp. Ion Engine. 02296_ Overheating: Core damaged (-119). 02296_ A-15 Conveyor heat damages core (-16). 02297_ A-15 Conveyor heat damages Med. Treads, Imp. Ion Engine, Med. Treads, Transport Network Coupler. 02298_ A-15 Conveyor heat damages core (-10). 02299_ A-15 Conveyor heat damages Imp. Ion Engine, Med. Treads. 02300_ A-15 Conveyor heat spikes uncontrollably. 02302_ Overheating: Core damaged (-170). [Achievement: 5k Club] Map ----- +----------------------------------------------------+ | ???????????????????????????????????????????? | | ???????????????????????????????????????????? | | ???????????????????????????????????????????? | | ??????????????????????????????????????##???? | | ?????????????????????????????????????#""???? | | ?????????????????????????????????????#"#???? | | ????????????????????#########???????##"####? | | ?????????"???######## //^^!!#########"""""#? | | ???????"""""## # # /^/^/!#!!!#=!##%""""#? | | ???????"" !!/ !=!=![= ""## | | ???????"" = *!=[[= """" | | ???????"" ##==# =### ###![[#= ##% ""## | | ?????????????#??# ==### ###!!!#/=### ###? | | ????????????????#####]] //########?# #??? | | ????????????????????#]] //#???????? !#?? | | ????????????????????#]] //#???????? !#?? | | ????????????????????### ###???????## ##?? | | ????????????????????#]] !!#????????! ??? | | ????????????????????#]] !!#????????! ??? | | ????????????????????#]] !!#????????! #?? | | ????????????##??####### =%###?###????# ##?? | | ??????# ????# ?#!!!### ##?!!!#?? ## ??? | | ??????# ## #!!!##%!!! ##!!!# ## ??? | | ??????#]] =%= ??? | | ??????#]] ! ! A ??? | | ??????#]] @ ! ??? | | ??????? ##!!!#!!!##% ##!!!#***## ??? | | ????????????#!??#!!!### ##?!!!#??*#??????? | | ????????????????####### ###?###??????????? | | ????????????????????#!! ==#??????????????? | | ????????????????????#!! ==#??????????????? | | ????????????????????#!!" ==#??????????????? | | ????????????????????###%* ###??????????????? | | ????????????????????# %" [[[#??????????????? | | ????????????????????# % ![[#??????????????? | | ?????????????######## [[#??????????????? | | ??????##?????# #***### ###??????????????? | | ??????#""" ## #***### % ###??????????????? | | ?????""""%" % #??????????????? | | ??????#""< !%!!%#??????????????? | | ??????#"""""## #***#!!!^^==#??????????????? | | ??????#"""""?########!!!^!==#??????????????? | | ???????###"?????????#########??????????????? | | ?????????#?????????????????????????????????? | | ???????????????????????????????????????????? | | ???????????????????????????????????????????? | | ???????????????????????????????????????????? | | ???????????????????????????????????????????? | | ???????????????????????????????????????????? | | ???????????????????????????????????????????? | +----------------------------------------------------+ Best States ------------- Heat Dissipation 37 Energy Generation 16 Energy Capacity 290 Matter Stores 300 Matter Capacity 300 Sight Range 16 Terrain Scan Density 10 Evasion (%) 55 Targeting Accuracy 5 Recoil Reduction 1 Item Schematics ----------------- None Robot Schematics ------------------ None Fabricated ------------ Nothing Repaired ---------- Nothing Studied --------- None Alien Tech Used ----------------- None Achievements -------------- 5k Club Armchair Analyst Civilization 2243 Fist Fight Hot Goods Link The Feds Made in Tau Ceti IV Please Form A Line Strength In Numbers Uncivil War Challenges ------------ None Game ------ Seed MultireflexShockCleaver Manual? 0 Play Time 00:40:47 Cumulative 5.2 hours Start 2026.07.27 @ 15:28:54 End 2026.07.27 @ 16:08:59 Sessions 1 Manual Loads 0 Difficulty Rogue Special Mode None Game No. 7 Rogue 7 Adventurer 0 Explorer 0 Win Type - Total 0 Types 0/0/0/0/0/0/0/0/0/0 Lore% 9 Gallery% 7 Achievement% 10 Wizard Run 0 Options --------- Layout 1 ASCII 0 Keyboard 0 Movement Mouse Keybinds 0 Fullscreen 1 Font 48/Smallcaps Map View 50x35 Zoom Use 0% Tactical HUD 1 Map Filters NONE Filters NONE Steam 1 RUN: 5d4ed5c8-7ce2-4533-ae7d-e767c8745818